bitfinex-derivatives/quotes_SOLF0:USTF0_20250319
["timestamp","ask_amount","ask_price","bid_price","bid_amount"]
[1742363652044,36.2196,125.96,125.95,0.0608754]
[1742363652249,49.35687332,125.96,125.95,0.0608754]
[1742363653850,49.35727332,125.96,125.87,13.13727332]
[1742363654054,13.13727332,125.92,125.87,13.13727332]
[1742363654342,41.41727332,125.92,125.87,13.13727332]
[1742363654548,7.9438,125.9,125.87,13.13727332]
[1742363654756,7.9438,125.9,125.88,13.13727332]
[1742363654952,8.00325921,125.9,125.88,13.13727332]
[1742363660552,0.05945921,125.9,125.89,13.13727332]
[1742363663558,8.00285921,125.9,125.88,13.13727332]
[1742363664361,0.05945921,125.9,125.88,13.13727332]
[1742363666661,0.05945921,125.9,125.88,21.08187332]
[1742363668663,0.05945921,125.9,125.88,13.13727332]
[1742363669064,8.00285921,125.9,125.88,13.13727332]
[1742363669762,7.944,125.89,125.88,13.13727332]
[1742363670264,8.00315921,125.9,125.88,13.13727332]
[1742363673868,8.00315921,125.9,125.87,0.05457457]
[1742363674062,8.00315921,125.9,125.87,13.19184789]
[1742363674469,8.00315921,125.9,125.87,21.13704789]
[1742363675469,8.00315921,125.9,125.87,13.19184789]
[1742363676368,8.00315921,125.9,125.87,21.13694789]
[1742363676970,8.00315921,125.9,125.88,13.13727332]
[1742363679774,7.944,125.89,125.88,13.13727332]
[1742363680272,0.05945921,125.9,125.88,13.13727332]
[1742363680472,8.00315921,125.9,125.88,13.13727332]
[1742363680668,0.05945921,125.9,125.87,13.19184789]
[1742363680873,13.19673253,125.9,125.87,0.05457457]
[1742363681073,41.47673253,125.9,125.87,0.05457457]
[1742363682174,28.33945921,125.9,125.87,0.05457457]
[1742363685872,7.9447,125.88,125.87,0.05457457]
[1742363687178,7.9447,125.88,125.87,13.19184789]
[1742363692073,28.33945921,125.9,125.87,13.19184789]
[1742363692276,28.33945921,125.9,125.88,13.13727332]
[1742363694082,36.28285921,125.9,125.88,13.13727332]
[1742363697377,28.33945921,125.9,125.89,13.13727332]
[1742363697582,0.05945921,125.9,125.89,13.13727332]
[1742363698880,0.05945921,125.9,125.89,21.08127332]
[1742363700882,0.05945921,125.9,125.89,13.13727332]
[1742363701182,8.00285921,125.9,125.89,13.13727332]
[1742363701783,0.05945921,125.9,125.89,13.13727332]
[1742363702785,0.05945921,125.9,125.88,7.9443]
[1742363703084,0.05945921,125.9,125.89,13.13727332]
[1742363704085,0.05945921,125.9,125.89,21.08127332]
[1742363704486,0.05945921,125.9,125.89,13.13727332]
[1742363706986,0.05945921,125.9,125.88,21.08147332]
[1742363709788,0.05945921,125.9,125.89,7.944]
[1742363709987,0.05945921,125.9,125.89,21.08127332]
[1742363711884,0.05945921,125.9,125.89,13.13727332]
[1742363712692,0.05945921,125.9,125.88,21.08167332]
[1742363719795,0.05945921,125.9,125.87,7.99957457]
[1742363719998,0.05945921,125.9,125.88,13.13727332]
[1742363720900,2.0363,125.94,125.88,41.41727332]
[1742363721098,30.3713,125.95,125.92,13.13727332]
[1742363721299,2.0913,125.95,125.92,7.9418]
[1742363721496,2.0913,125.95,125.92,13.13727332]
[1742363722096,2.14524953,125.95,125.92,13.18822432]
[1742363722599,2.14524953,125.95,125.92,21.13032432]
[1742363724004,2.14524953,125.95,125.92,7.993051]
[1742363724405,10.08554953,125.95,125.92,0.050951]
[1742363724802,15.28252285,125.95,125.92,0.050951]
[1742363725202,7.9409,125.94,125.92,0.050951]
[1742363726105,36.2009,125.94,125.92,0.050951]
[1742363726503,13.13727332,125.93,125.88,13.13727332]
[1742363726709,41.39727332,125.92,125.87,13.13727332]
[1742363727007,7.9434,125.9,125.87,13.13727332]
[1742363727409,7.9441,125.89,125.86,13.13727332]
[1742363727704,8.00123746,125.89,125.86,13.19189775]
[1742363729307,0.05713746,125.89,125.86,0.05462443]
[1742363729509,28.26,125.88,125.86,0.05462443]
[1742363730200,36.2051,125.88,125.86,0.05462443]
[1742363731407,7.9453,125.87,125.86,0.05462443]
[1742363733908,36.2049,125.88,125.86,0.05462443]
[1742363736212,28.26,125.88,125.86,0.05462443]
[1742363737709,28.26,125.88,125.86,13.19189775]
[1742363738114,28.26,125.88,125.87,13.13727332]
[1742363738313,0.05713746,125.89,125.87,21.08197332]
[1742363738513,0.05713746,125.89,125.88,13.13727332]
[1742363739716,0.05713746,125.89,125.87,13.13727332]
[1742363739914,0.05713746,125.89,125.86,13.19189775]
[1742363740110,8.00163746,125.89,125.86,13.19189775]
[1742363740718,7.9447,125.88,125.86,13.19189775]
[1742363741411,7.9447,125.88,125.86,0.05462443]
[1742363741717,36.2047,125.88,125.86,0.05462443]
[1742363744717,36.2047,125.88,125.86,13.19189775]
[1742363749631,7.9453,125.87,125.86,13.19189775]
[1742363750833,7.9453,125.87,125.86,0.05462443]
[1742363751633,7.947,125.85,125.83,13.13727332]
[1742363752840,0.05463312,125.85,125.83,0.06010584]
[1742363753331,7.9472,125.84,125.83,0.06010584]
[1742363754634,8.00123312,125.85,125.83,0.06010584]
[1742363754836,0.05463312,125.85,125.83,0.06010584]
[1742363756739,8.00133312,125.85,125.83,0.06010584]
[1742363758239,0.05463312,125.85,125.83,0.06010584]
[1742363759730,0.05463312,125.85,125.83,21.14507916]
[1742363760235,0.05463312,125.85,125.83,13.19737916]
[1742363760640,0.05463312,125.85,125.83,0.06010584]
[1742363760843,8.00153312,125.85,125.83,0.06010584]
[1742363762043,0.05463312,125.85,125.83,0.06010584]
[1742363763338,8.00133312,125.85,125.83,0.06010584]
[1742363771346,0.05463312,125.85,125.83,0.06010584]
[1742363771850,8.00123312,125.85,125.83,0.06010584]
[1742363772654,7.9472,125.84,125.83,0.06010584]
[1742363778262,36.2072,125.84,125.83,0.06010584]
[1742363779461,7.9486,125.82,125.79,323.44737332]
[1742363779662,41.39727332,125.84,125.79,287.23727332]
[1742363779862,41.39727332,125.84,125.79,13.13727332]
[1742363780761,7.9491,125.81,125.8,0.0536641]
[1742363780961,28.26,125.82,125.8,0.0536641]
[1742363781264,36.2088,125.82,125.8,13.19093742]
[1742363782660,7.9491,125.81,125.8,13.19093742]
[1742363782861,7.9491,125.81,125.8,0.0536641]
[1742363785162,36.2087,125.82,125.8,0.0536641]
[1742363787359,28.26,125.82,125.8,0.0536641]
[1742363788258,36.2088,125.82,125.8,0.0536641]
[1742363791166,7.9491,125.81,125.8,0.0536641]
[1742363791663,7.9501,125.8,125.77,13.13727332]
[1742363791962,36.2101,125.8,125.77,13.13727332]
[1742363792366,36.2101,125.8,125.78,13.13727332]
[1742363792666,36.27087664,125.8,125.78,13.19693122]
[1742363792965,28.32077664,125.8,125.78,13.19693122]
[1742363793266,28.32077664,125.8,125.78,21.14783122]
[1742363795068,28.32077664,125.8,125.79,7.9503]
[1742363795267,0.06077664,125.8,125.79,21.08757332]
[1742363795468,0.06077664,125.8,125.78,0.0596579]
[1742363795768,28.26,125.79,125.78,0.0596579]
[1742363797370,28.26,125.79,125.78,8.0106579]
[1742363797668,28.26,125.79,125.78,0.0596579]
[1742363797869,0.06077664,125.8,125.78,13.19693122]
[1742363798070,0.06077664,125.8,125.79,7.9503]
[1742363798570,0.06077664,125.8,125.79,21.08757332]
[1742363810187,0.06077664,125.8,125.79,7.9503]
[1742363811889,0.06077664,125.8,125.78,21.14753122]
[1742363812087,0.06077664,125.8,125.78,13.19693122]
[1742363813885,0.06077664,125.8,125.79,7.9503]
[1742363819703,0.06077664,125.8,125.79,21.08757332]
[1742363820397,17.36447332,125.86,125.81,7.9486]
[1742363820601,28.26,125.84,125.81,21.08587332]
[1742363820898,7.9475,125.84,125.81,21.08587332]
[1742363821502,7.9478,125.83,125.81,21.13790842]
[1742363821892,0.05755851,125.84,125.81,21.13790842]
[1742363822293,8.00505851,125.84,125.81,21.13790842]
[1742363823299,0.05755851,125.84,125.82,7.9484]
[1742363823598,0.05755851,125.84,125.81,13.18930842]
[1742363823798,8.00475851,125.84,125.81,21.13810842]
[1742363825299,8.00475851,125.84,125.81,8.0008351]
[1742363826796,36.26475851,125.84,125.81,8.0008351]
[1742363827899,36.26475851,125.84,125.81,0.0520351]
[1742363828604,36.26475851,125.84,125.81,13.18930842]
[1742363828799,36.26475851,125.84,125.81,21.13830842]
[1742363833507,0.05755851,125.84,125.82,13.13727332]
[1742363833703,0.05755851,125.84,125.83,13.13727332]
[1742363834303,0.05755851,125.84,125.83,21.08507332]
[1742363836712,28.26,125.87,125.85,7.9463]
[1742363837010,10.1239,125.89,125.85,13.13727332]
[1742363837212,38.3839,125.89,125.86,13.13727332]
[1742363837416,38.3839,125.89,125.86,21.08287332]
[1742363837619,2.1796,125.89,125.86,13.13727332]
[1742363837912,28.31101281,125.89,125.87,7.9453]
[1742363838316,36.25511281,125.89,125.87,7.9453]
[1742363839215,0.05101281,125.89,125.87,21.08257332]
[1742363841219,0.05101281,125.89,125.87,13.13727332]
[1742363841623,7.99511281,125.89,125.87,13.13727332]
[1742363841914,7.99511281,125.89,125.86,13.18787202]
[1742363842410,7.9448,125.88,125.86,13.18787202]
[1742363842613,0.05101281,125.89,125.86,0.0505987]
[1742363843423,7.9447,125.88,125.86,0.0505987]
[1742363843721,0.05101281,125.89,125.86,0.0505987]
[1742363844021,0.05101281,125.89,125.87,13.13727332]
[1742363844227,0.05101281,125.89,125.88,13.13727332]
[1742363845226,0.05101281,125.89,125.88,21.08197332]
[1742363847924,0.05101281,125.89,125.88,13.13727332]
[1742363849629,7.99501281,125.89,125.88,13.13727332]
[1742363850131,0.05101281,125.89,125.88,13.13727332]
[1742363853530,7.99501281,125.89,125.87,41.37727332]
[1742363853728,7.99501281,125.89,125.87,28.24]
[1742363853923,0.05101281,125.89,125.86,21.13347202]
[1742363854126,7.99531281,125.89,125.86,21.13347202]
[1742363854929,7.99531281,125.89,125.87,7.9452]
[1742363855128,0.05101281,125.89,125.87,21.08247332]
[1742363856132,0.05101281,125.89,125.88,13.13727332]
[1742363857732,7.99501281,125.89,125.87,13.13727332]
[1742363857930,7.99501281,125.89,125.86,49.37357202]
[1742363858638,7.9447,125.88,125.86,49.37357202]
[1742363859230,7.9453,125.87,125.86,0.0505987]
[1742363860334,7.945,125.88,125.86,0.0505987]
[1742363862529,7.9453,125.87,125.86,0.0505987]
[1742363863134,7.945,125.88,125.86,0.0505987]
[1742363867934,7.945,125.88,125.86,13.18787202]
[1742363868134,36.23531281,125.89,125.86,21.13377202]
[1742363868334,28.29101281,125.89,125.86,13.18787202]
[1742363868636,7.9447,125.88,125.86,13.18787202]
[1742363871133,28.29101281,125.89,125.86,0.0505987]
[1742363871329,0.05101281,125.89,125.87,13.13727332]
[1742363871734,0.05101281,125.89,125.87,21.08217332]
[1742363873133,0.05101281,125.89,125.88,7.9447]
[1742363873534,0.05101281,125.89,125.88,21.08197332]
[1742363875745,0.05101281,125.89,125.87,21.08227332]
[1742363876041,0.05101281,125.89,125.86,41.40787202]
[1742363876241,7.99531281,125.89,125.86,49.35327202]
[1742363878941,0.05101281,125.89,125.87,7.9453]
[1742363880143,7.99501281,125.89,125.86,49.35347202]
[1742363885944,0.05101281,125.89,125.87,7.9452]
[1742363886148,0.05101281,125.89,125.87,13.13727332]
[1742363886649,0.05101281,125.89,125.88,7.9447]
[1742363887138,0.05101281,125.89,125.88,21.08197332]
[1742363889950,0.05101281,125.89,125.88,7.9447]
[1742363892844,0.05101281,125.89,125.87,21.08217332]
[1742363897452,0.05101281,125.89,125.88,7.9447]
[1742363899050,0.05101281,125.89,125.88,21.08197332]
[1742363900556,0.05101281,125.89,125.88,49.30197332]
[1742363902553,43.40157332,125.95,125.91,7.9428]
[1742363902854,13.13727332,125.94,125.9,28.22]
[1742363903250,13.13727332,125.93,125.88,41.35727332]
[1742363903753,13.18910487,125.92,125.89,0.05771731]
[1742363903955,7.9433,125.91,125.89,0.05771731]
[1742363907157,7.9434,125.9,125.89,0.05771731]
[1742363907357,13.13727332,125.91,125.89,0.05771731]
[1742363908558,21.08057332,125.91,125.89,0.05771731]
[1742363909452,7.9434,125.9,125.89,0.05771731]
[1742363910551,7.9431,125.91,125.89,0.05771731]
[1742363911465,7.9431,125.91,125.89,8.00171731]
[1742363912264,7.9431,125.91,125.89,0.05771731]
[1742363913664,7.9434,125.9,125.89,0.05771731]
[1742363917164,7.9431,125.91,125.89,0.05771731]
[1742363917866,7.9434,125.9,125.89,0.05771731]
[1742363919260,7.9431,125.91,125.89,0.05771731]
[1742363919666,7.9431,125.91,125.89,8.00161731]
[1742363919966,49.35150487,125.92,125.89,8.00161731]
[1742363920167,36.21423155,125.92,125.89,8.00161731]
[1742363921668,36.21423155,125.92,125.9,7.9433]
[1742363922566,28.27183155,125.92,125.9,7.9433]
[1742363924071,0.05183155,125.92,125.9,7.9433]
[1742363924472,7.99393155,125.92,125.9,7.9433]
[1742363925668,0.05183155,125.92,125.9,7.9433]
[1742363928081,7.99403155,125.92,125.89,21.13869063]
[1742363928381,0.05183155,125.92,125.89,8.00141731]
[1742363929179,7.99433155,125.92,125.89,8.00141731]
[1742363932481,7.9428,125.91,125.89,8.00141731]
[1742363933679,7.99423155,125.92,125.89,8.00141731]
[1742363934083,7.99423155,125.92,125.9,7.9433]
[1742363934581,0.05183155,125.92,125.9,7.9433]
[1742363935984,7.99403155,125.92,125.9,7.9433]
[1742363936183,0.05183155,125.92,125.9,7.9433]
[1742363937177,0.05183155,125.92,125.91,7.9428]
[1742363938080,0.05183155,125.92,125.91,21.08007332]
[1742363958505,0.05183155,125.92,125.9,28.2]
[1742363958706,0.05183155,125.92,125.89,13.19499063]
[1742363958707,41.33727332,125.91,125.89,0.05771731]
[1742363958905,13.13727332,125.9,125.85,13.13727332]
[1742363959204,7.9443,125.89,125.86,7.9456]
[1742363960205,7.99465404,125.89,125.86,8.00262238]
[1742363961907,7.9447,125.88,125.86,13.1942957]
[1742363962501,7.9447,125.88,125.86,0.05702238]
[1742363964502,7.9453,125.87,125.86,0.05702238]
[1742363967213,7.9449,125.88,125.86,0.05702238]
[1742363967610,41.38762736,125.89,125.86,0.05702238]
[1742363968610,41.38762736,125.89,125.85,13.13727332]
[1742363968611,13.13727332,125.87,125.83,273.96]
[1742363968815,13.13727332,125.85,125.83,273.96]
[1742363969010,41.33727332,125.85,125.81,13.13727332]
[1742363969309,7.9478,125.84,125.81,13.13727332]
[1742363969510,41.33727332,125.85,125.81,13.13727332]
[1742363969813,0.05109817,125.84,125.82,0.05494717]
[1742363970008,49.28517332,125.83,125.82,0.05494717]
[1742363970310,49.28517332,125.83,125.78,274.04]
[1742363970311,41.33727332,125.83,125.78,287.17727332]
[1742363970907,7.9488,125.82,125.78,295.12797332]
[1742363971108,7.9488,125.82,125.79,13.13727332]
[1742363971405,0.05720734,125.81,125.79,13.19088068]
[1742363974711,8.00630734,125.81,125.79,13.19088068]
[1742363975813,8.00630734,125.81,125.79,0.05360736]
[1742363976014,7.9497,125.8,125.79,0.05360736]
[1742363977109,36.20650734,125.81,125.79,0.05360736]
[1742363978509,7.9497,125.8,125.79,0.05360736]
[1742363978904,13.13727332,125.8,125.75,13.13727332]
[1742363979112,38.2816,125.79,125.75,21.08967332]
[1742363979716,38.2816,125.79,125.76,7.9522]
[1742363980217,38.34112786,125.79,125.76,8.00464823]
[1742363980617,30.39042786,125.79,125.77,7.9516]
[1742363980818,30.39042786,125.79,125.76,0.05244823]
[1742363981418,30.39042786,125.79,125.76,8.00424823]
[1742363981918,30.39042786,125.79,125.77,7.9512]
[1742363982920,30.39042786,125.79,125.76,0.05244823]
[1742363983315,43.52770118,125.79,125.76,0.05244823]
[1742363985118,51.47840118,125.79,125.76,8.00464823]
[1742363985617,43.52770118,125.79,125.76,8.00464823]
[1742363986019,30.39042786,125.79,125.77,7.9515]
[1742363986218,30.39042786,125.79,125.77,13.13727332]
[1742363986718,30.39042786,125.79,125.78,7.951]
[1742363986919,2.19042786,125.79,125.78,7.951]
[1742363987419,2.19042786,125.79,125.77,21.08857332]
[1742363990614,2.19042786,125.79,125.77,13.13727332]
[1742363990810,10.14082786,125.79,125.76,21.14162155]
[1742363991022,10.14082786,125.79,125.76,13.18972155]
[1742363992924,10.14082786,125.79,125.76,21.14182155]
[1742363994924,2.19042786,125.79,125.77,7.9516]
[1742363997125,2.19042786,125.79,125.76,21.14172155]
[1742363998723,2.19042786,125.79,125.77,7.9515]
[1742364000632,10.14082786,125.79,125.76,21.14162155]
[1742364001218,0.05952786,125.79,125.77,7.9516]
[1742364001531,0.05952786,125.79,125.78,13.13727332]
[1742364001733,13.13727332,125.85,125.78,13.13727332]
[1742364002031,13.13727332,125.86,125.81,13.13727332]
[1742364002329,28.22,125.86,125.82,13.13727332]
[1742364002729,36.1663,125.86,125.83,21.08507332]
[1742364002930,0.05651152,125.85,125.83,21.14293526]
[1742364003832,0.05651152,125.85,125.83,8.00566194]
[1742364004834,8.00311152,125.85,125.83,0.05786194]
[1742364005635,7.9472,125.84,125.83,0.05786194]
[1742364007139,8.00341152,125.85,125.83,0.05786194]
[1742364007936,7.9472,125.84,125.83,0.05786194]
[1742364008837,8.00331152,125.85,125.83,0.05786194]
[1742364009833,0.05651152,125.85,125.83,13.19513526]
[1742364010535,0.05651152,125.85,125.84,21.08447332]
[1742364012839,0.05651152,125.85,125.84,49.28447332]
[1742364013142,49.28097332,125.9,125.87,7.9453]
[1742364013638,7.944,125.89,125.86,21.08287332]
[1742364013845,41.33727332,125.9,125.86,21.08287332]
[1742364014136,0.05585581,125.89,125.87,0.05207943]
[1742364014541,13.19312913,125.89,125.87,0.05207943]
[1742364014743,41.33727332,125.88,125.81,13.13727332]
[1742364014942,13.13727332,125.86,125.81,41.33727332]
[1742364015239,7.9475,125.84,125.81,41.33727332]
[1742364015444,41.33727332,125.84,125.79,287.35727332]
[1742364015637,13.13727332,125.81,125.75,6.4057]
[1742364015833,0.05894195,125.79,125.77,0.0527852]
[1742364017138,7.951,125.78,125.77,0.0527852]
[1742364018152,13.19621527,125.79,125.77,0.0527852]
[1742364019048,21.14661527,125.79,125.77,0.0527852]
[1742364022749,21.08827332,125.78,125.77,0.0527852]
[1742364022944,49.28827332,125.78,125.73,13.13727332]
[1742364023451,49.28827332,125.78,125.74,7.9534]
[1742364024149,49.28827332,125.78,125.75,0.0528797]
[1742364024150,8.00840158,125.77,125.75,0.0528797]
[1742364024355,28.2,125.76,125.75,0.0528797]
[1742364024557,41.33727332,125.76,125.75,0.0528797]
[1742364024750,49.28947332,125.76,125.75,0.0528797]
[1742364025756,41.33727332,125.76,125.75,0.0528797]
[1742364026055,28.2,125.76,125.75,0.0528797]
[1742364026655,36.1522,125.76,125.75,0.0528797]
[1742364027557,28.2,125.76,125.75,0.0528797]
[1742364029852,0.05680158,125.77,125.75,0.0528797]
[1742364030052,0.05680158,125.77,125.75,13.19015302]
[1742364030857,0.05680158,125.77,125.75,0.0528797]
[1742364031659,8.00850158,125.77,125.75,0.0528797]
[1742364034962,7.9522,125.76,125.75,0.0528797]
[1742364040370,0.05680158,125.77,125.75,0.0528797]
[1742364041269,0.05680158,125.77,125.75,8.0053797]
[1742364041870,8.00840158,125.77,125.75,8.0053797]
[1742364042670,0.05680158,125.77,125.75,8.0053797]
[1742364043770,0.05680158,125.77,125.76,7.9522]
[1742364050173,0.05680158,125.77,125.75,21.14265302]
[1742364050370,0.05680158,125.77,125.75,13.19015302]
[1742364050566,0.05680158,125.77,125.76,7.9522]
[1742364053584,0.05680158,125.77,125.75,21.14275302]
[1742364053783,0.05680158,125.77,125.75,8.0054797]
[1742364055587,0.05680158,125.77,125.76,7.9522]
[1742364055788,0.05680158,125.77,125.75,0.0528797]
[1742364056386,8.00870158,125.77,125.75,0.0528797]
[1742364057386,0.05680158,125.77,125.75,8.0057797]
[1742364058288,8.00850158,125.77,125.75,0.0528797]
[1742364059887,0.05680158,125.77,125.75,8.0056797]
[1742364060595,0.05680158,125.77,125.75,8.0054797]
[1742364060794,0.05680158,125.77,125.75,0.0528797]
[1742364061085,0.05680158,125.77,125.76,7.9522]
[1742364061292,0.05680158,125.77,125.76,49.28947332]
[1742364061487,7.9494,125.81,125.76,41.33727332]
[1742364061688,7.9494,125.81,125.77,13.13727332]
[1742364062489,7.9494,125.81,125.78,7.9506]
[1742364062689,0.05318823,125.8,125.78,8.00385285]
[1742364062889,8.00298823,125.8,125.78,8.00385285]
[1742364065189,0.05318823,125.8,125.79,7.9503]
[1742364069685,0.05318823,125.8,125.79,21.08757332]
[1742364069886,15.23237332,125.85,125.79,13.13727332]
[1742364070092,51.35917332,125.85,125.82,7.9481]
[1742364071184,23.23533155,125.85,125.82,8.0085511]
[1742364071387,10.09805823,125.85,125.82,8.0085511]
[1742364072692,7.9473,125.84,125.82,0.0604511]
[1742364073998,10.09815823,125.85,125.82,8.0087511]
[1742364075693,0.05615823,125.85,125.82,0.0604511]
[1742364076000,0.05615823,125.85,125.83,13.13727332]
[1742364076795,0.05615823,125.85,125.84,7.9472]
[1742364078298,0.05615823,125.85,125.83,7.9476]
[1742364078493,0.05615823,125.85,125.82,28.2404511]
[1742364078700,8.00275823,125.85,125.82,28.2404511]
[1742364079002,13.19343155,125.85,125.82,0.0604511]
[1742364079299,13.13727332,125.84,125.82,0.0604511]
[1742364079495,41.31727332,125.84,125.82,0.0604511]
[1742364079892,7.9478,125.83,125.82,0.0604511]
[1742364080498,49.26477332,125.84,125.82,0.0604511]
[1742364080693,41.31727332,125.84,125.82,0.0604511]
[1742364082000,7.9478,125.83,125.82,0.0604511]
[1742364085795,13.19343155,125.85,125.82,0.0604511]
[1742364085994,0.05615823,125.85,125.84,13.13727332]
[1742364086400,0.05615823,125.85,125.84,21.08447332]
[1742364087504,0.05615823,125.85,125.84,49.26447332]
[1742364090900,10.1269,125.89,125.86,7.9456]
[1742364091102,2.1828,125.89,125.85,13.13727332]
[1742364091500,2.1828,125.89,125.87,7.9448]
[1742364092203,2.24071686,125.89,125.87,8.00154666]
[1742364093105,2.24071686,125.89,125.87,0.05674666]
[1742364093711,41.29727332,125.88,125.83,13.13727332]
[1742364093903,13.13727332,125.87,125.82,41.29727332]
[1742364094213,36.1063,125.86,125.82,41.29727332]
[1742364094809,0.05153173,125.85,125.83,0.05175583]
[1742364095009,7.99813173,125.85,125.83,0.05175583]
[1742364095605,7.9472,125.84,125.83,0.05175583]
[1742364096104,13.18880505,125.85,125.83,0.05175583]
[1742364096105,0.05153173,125.85,125.83,0.05175583]
[1742364097512,0.05153173,125.85,125.83,7.99925583]
[1742364098414,0.05153173,125.85,125.83,0.05175583]
[1742364098919,7.99843173,125.85,125.83,0.05175583]
[1742364099512,0.05153173,125.85,125.83,0.05175583]
[1742364099718,0.05153173,125.85,125.83,7.99945583]
[1742364101409,7.99813173,125.85,125.83,7.99945583]
[1742364102315,7.99813173,125.85,125.83,0.05175583]
[1742364102617,36.1072,125.84,125.83,0.05175583]
[1742364102813,28.16,125.84,125.83,0.05175583]
[1742364105518,28.16,125.84,125.83,7.99955583]
[1742364105719,0.05153173,125.85,125.83,13.18902915]
[1742364106420,0.05153173,125.85,125.84,7.9472]
[1742364109421,0.05153173,125.85,125.83,7.99925583]
[1742364110121,7.99843173,125.85,125.83,0.05175583]
[1742364110321,28.21153173,125.85,125.83,0.05175583]
[1742364110822,7.9472,125.84,125.83,0.05175583]
[1742364111318,41.34880505,125.85,125.8,13.13727332]
[1742364111523,13.13727332,125.84,125.79,41.29727332]
[1742364111720,28.16,125.83,125.79,41.29727332]
[1742364112021,2.1828,125.89,125.83,7.9473]
[1742364112022,21.08337332,125.86,125.83,7.9473]
[1742364112420,28.16,125.85,125.82,13.13727332]
[1742364112724,0.05310819,125.86,125.83,13.18942263]
[1742364112925,28.16,125.87,125.83,13.18942263]
[1742364113223,0.05464982,125.86,125.84,7.9472]
[1742364114815,8.00054982,125.86,125.83,21.13692263]
[1742364115220,8.00054982,125.86,125.83,13.18942263]
[1742364115924,8.00054982,125.86,125.84,7.9472]
[1742364116525,0.05464982,125.86,125.84,7.9472]
[1742364117725,8.00064982,125.86,125.83,21.13692263]
[1742364117925,0.05464982,125.86,125.83,0.05214931]
[1742364118425,41.29727332,125.85,125.83,0.05214931]
[1742364118921,13.13727332,125.84,125.8,7.9494]
[1742364119125,28.16,125.83,125.8,7.9494]
[1742364119325,28.16,125.83,125.81,7.949]
[1742364120026,28.21764903,125.83,125.81,8.00590711]
[1742364122630,36.16554903,125.83,125.81,0.05690711]
[1742364124127,36.16554903,125.83,125.81,8.00590711]
[1742364124326,28.21764903,125.83,125.81,8.00590711]
[1742364126127,28.21764903,125.83,125.81,0.05690711]
[1742364126730,28.21764903,125.83,125.81,8.00570711]
[1742364127922,28.21764903,125.83,125.82,7.9484]
[1742364128830,0.05764903,125.83,125.82,21.08567332]
[1742364131625,0.05764903,125.83,125.82,13.13727332]
[1742364132032,0.05764903,125.83,125.81,13.19418043]
[1742364134031,0.05764903,125.83,125.81,21.14308043]
[1742364135036,0.05764903,125.83,125.81,13.19418043]
[1742364135429,7.9484,125.82,125.81,0.05690711]
[1742364135737,21.08567332,125.82,125.81,0.05690711]
[1742364136037,13.13727332,125.82,125.77,13.13727332]
[1742364136238,41.29727332,125.81,125.74,44.05146273]
[1742364136437,41.29727332,125.81,125.74,57.18873605]
[1742364136438,13.13727332,125.79,125.74,57.18873605]
[1742364136639,7.9513,125.78,125.74,65.14193605]
[1742364137038,7.9513,125.78,125.74,32.103339]
[1742364137237,8.0095312,125.77,125.75,0.05648849]
[1742364138035,0.0579312,125.77,125.75,0.05648849]
[1742364140141,28.2179312,125.77,125.75,0.05648849]
[1742364142136,28.2179312,125.77,125.75,8.00928849]
[1742364142528,28.2179312,125.77,125.75,0.05648849]
[1742364142733,36.1696312,125.77,125.75,0.05648849]
[1742364143541,28.2179312,125.77,125.75,0.05648849]
[1742364143841,28.2179312,125.77,125.75,13.19376181]
[1742364144033,28.2179312,125.77,125.76,7.9522]
[1742364144240,0.0579312,125.77,125.76,7.9522]
[1742364153045,28.18,125.82,125.8,7.9495]
[1742364153345,13.13727332,125.83,125.8,7.9495]
[1742364153548,28.18,125.82,125.8,7.9495]
[1742364153750,28.18,125.82,125.79,13.13727332]
[1742364154250,28.23498043,125.82,125.79,13.19808419]
[1742364154437,0.05498043,125.82,125.79,13.19808419]
[1742364154639,0.05498043,125.82,125.81,7.9491]
[1742364155445,0.05498043,125.82,125.81,21.08637332]
[1742364156652,0.05498043,125.82,125.81,49.26637332]
[1742364158453,28.18,125.86,125.85,7.9466]
[1742364158854,41.31727332,125.88,125.86,7.9459]
[1742364159054,28.18,125.88,125.86,7.9459]
[1742364159355,49.24137332,125.89,125.84,13.13727332]
[1742364159551,49.24137332,125.89,125.86,0.05927988]
[1742364159552,0.0582738,125.88,125.86,0.05927988]
[1742364160648,0.0582738,125.88,125.86,8.00507988]
[1742364160853,0.0582738,125.88,125.86,0.05927988]
[1742364161561,0.0582738,125.88,125.86,13.1965532]
[1742364162957,0.0582738,125.88,125.87,7.9453]
[1742364164860,0.0582738,125.88,125.86,8.00487988]
[1742364167162,0.0582738,125.88,125.87,7.9453]
[1742364167364,0.0582738,125.88,125.86,0.05927988]
[1742364168964,0.0582738,125.88,125.87,7.9453]
[1742364169466,0.0582738,125.88,125.86,8.00487988]
[1742364170460,0.0582738,125.88,125.87,7.9453]
[1742364171465,8.0033738,125.88,125.86,0.05927988]